Cogmind - Beta 16 @@@ ROGUE MODE // 2026.01.22 @ 15:45:55 Player: AngelSpirit Result: Destroyed by H-55 Commando with Assault Rifle Performance ------------- Evolutions (0) 0 Regions Visited (3) 600 Robots Destroyed (32) 160 Value Destroyed (617) 617 Prototype IDs (0) 0 Alien Tech Used (0) 0 Bonus (0) 0 TOTAL SCORE: 1377 Bonus ------- None Cogmind --------- Core Integrity 0/250 Matter 275/300 Energy 79/100 System Corruption 0% Temperature Cool (54) Movement Rolling (135) Ox3 Location -9/Recycling Parts ------- > --- POWER (1) -------- (None) > --- PROPULSION (2) --- Wheel Compact Wheel > --- UTILITY (2) ------ Huge Storage Unit Light Armor Plating > --- WEAPON (2) ------- Spread Laser Subdweller Machine Gun > --- INVENTORY (25) --- Meta Core Wheel Wheel Compact Wheel Compact Wheel Subdweller Monowheel Medium Storage Unit Sensor Array Spread Laser Spread Laser Rocket Launcher Mining Claw Peak State ------------ > --- POWER ------------ Subdweller Power Source > --- PROPULSION ------- Wheel Compact Wheel > --- UTILITY ---------- Huge Storage Unit Light Armor Plating > --- WEAPON ----------- Subdweller Machine Gun Subdweller Machine Gun > --- INVENTORY -------- Light Ion Engine Meta Core Wheel Wheel Compact Wheel Compact Wheel Subdweller Monowheel Medium Storage Unit Sensor Array Light Armor Plating Light Armor Plating Spread Laser Spread Laser Spread Laser Mining Claw [Rating: 13] Favorites ----------- Power Ion Engine Engine Ion Engine Propulsion Wheel Wheel Wheel Utility Huge Storage Unit Device Seismic Detector Storage Huge Storage Unit Protection Light Armor Plating Weapon Light Cannon Energy Gun Medium Laser Ballistic Gun Subdweller Machine Gun Ballistic Cannon Light Cannon Special Weapon Mining Laser Slashing Weapon Mining Claw Build | -11 -10 -10 -9 ------- Run | Yrd Mat Sub Rec Slots Evolved . | . . . . Power . | . . . . Propulsion . | . . . . Utility . | . . . . Weapon . | . . . . Parts Attached 24 | 8 9 6 1 Power 3 | 2 . 1 . Engine 3 | 2 . 1 . Core . | . . . . Reactor . | . . . . Propulsion 5 | 2 2 1 . Treads . | . . . . Leg . | . . . . Wheel 5 | 2 2 1 . Hover . | . . . . Flight . | . . . . Utility 7 | 2 3 2 . Device 2 | 1 1 . . Storage 2 | 1 1 . . Processor . | . . . . Hackware . | . . . . Protection 3 | . 1 2 . Artifact . | . . . . Weapon 9 | 2 4 2 1 Energy Gun 3 | 1 1 . 1 Energy Cannon . | . . . . Ballistic Gun 3 | 1 . 2 . Ballistic Cannon 1 | . 1 . . Launcher . | . . . . Special Weapon 1 | . 1 . . Impact Weapon . | . . . . Slashing Weapon 1 | . 1 . . Piercing Weapon . | . . . . Special Melee Weapon . | . . . . Unidentified Prototypes . | . . . . Parts Lost 6 | . 1 3 2 Power 2 | . . 1 1 Propulsion 2 | . . 2 . Utility 1 | . 1 . . Weapon 1 | . . . 1 Highest Loss Streak 2 | . 1 1 2 To Critical Strikes . | . . . . Average Backups 10 | 1 9 14 12 Power . | . 1 . . Propulsion 3 | . 3 5 5 Utility 3 | . 3 3 2 Weapon 2 | . 1 4 4 Tool/Special . | . . . . Unused Backups 11 | . . . 11 Power . | . . . . Propulsion 5 | . . . 5 Utility 2 | . . . 2 Weapon 3 | . . . 3 Tool/Special 1 | . . . 1 Average Slot Usage (%) 99 | . 99 96 99 Engine 13 | . 14 13 13 Wheel 27 | . 28 25 28 Device 6 | . 7 6 . Storage 14 | . 14 14 14 Protection 7 | . 5 7 14 Energy Gun 8 | . 12 1 . Ballistic Gun 9 | . 2 24 27 Ballistic Cannon 8 | . 11 1 . Special Weapon 1 | . 1 . . Peak Build Rating 13 | 7 9 13 12 Average Rating 8 | 5 7 10 11 On Entrance 6 | . 7 9 11 Avg Prop Armor Cover (%) . | . . . . Naked Turns . | . . . . Heaviest Build 96 | 14 94 96 94 Greatest Support 26 | 26 26 26 26 Greatest Overweight (x) 9 | . 9 9 3 Average Overweight (x) 2 | . 2 4 3 Largest Inventory Capacity 25 | 8 25 25 25 Average Capacity 20 | 7 19 25 25 Most Carried 15 | 4 15 15 14 Average Carried 10 | 1 9 14 12 Final Capacity 25 | 8 25 25 25 Final Carried 15 | 3 15 12 12 Class Distribution -------------------- 100% | Mutant Dominant Class ---------------- Mutant | -10/Materials Mutant | -10/Subcaves Mutant | -9/Recycling Resources | -11 -10 -10 -9 ----------- Run | Yrd Mat Sub Rec Matter Collected 837 | 247 319 179 92 Remotely . | . . . . Salvage Created 668 | 32 405 156 75 Parts 60 | 7 36 15 2 Haulers Intercepted 3 | . 2 . 1 Recyclers Shooed . | . . . . Parts Field Recycled . | . . . . Retrieved Matter . | . . . . Parts Self-Destructed 7 | . . 7 . Prevented . | . . . . Parts Restored . | . . . . Kills | -11 -10 -10 -9 ------- Run | Yrd Mat Sub Rec Combat Hostiles Destroyed 22 | . 12 9 1 Guns 14 | . 5 8 1 Cannons 8 | . 7 1 . Classes Destroyed 9 | 1 5 2 1 Worker 1 | . 1 . . Tunneler 2 | 2 . . . Hauler 3 | . 2 . 1 Turret 2 | . . 2 . Watcher 2 | . 2 . . Swarmer 13 | . 6 7 . Grunt 6 | . 6 . . Duelist 1 | . . . 1 Subdweller 2 | . . 2 . Best Kill Streak 4 | 2 3 4 2 Combat Bots Only 4 | . 3 4 1 Max Kills in Single Turn 2 | 1 2 1 1 Gunslinging . | . . . . Exploded . | . . . . Melee . | . . . . Uniques/NPCs Destroyed . | . . . . Combat | -11 -10 -10 -9 -------- Run | Yrd Mat Sub Rec Hostile Shots Fired 145 | . 61 67 17 Missed 42 | . 18 20 4 Hits 103 | . 43 47 13 Melee 4 | . . . 4 Projectile 99 | . 43 47 9 Critical Strikes 2 | . 1 . 1 Damage Taken 1035 | . 375 444 216 Core 250 | . 91 126 33 Absorbed by Shields . | . . . . Core Remaining (%) 100 | 100 . . . Volleys Fired 101 | 10 56 30 5 Largest 2 | 2 2 2 2 Hottest 100 | 70 100 95 95 Shots Fired 187 | 20 98 59 10 Gun 142 | 20 59 53 10 Cannon 41 | . 35 6 . Launcher . | . . . . Special 4 | . 4 . . Kinetic 118 | 10 46 54 8 Thermal 69 | 10 52 5 2 Explosive . | . . . . Electromagnetic . | . . . . Robot Hit Streak 11 | 4 8 11 5 Robot Miss Streak 5 | 2 5 4 2 Penetration Max . | . . . . Secondary Targets 1 | . . 1 . Max Gunslinging Chain 1 | . . 1 . Shots Hit Robots 102 | 13 50 34 5 Core Hits 64 | 3 30 23 8 Critical Kills . | . . . . Critical Parts Destroyed 1 | . . 1 . Critical Strikes 3 | 1 . 2 . Burn 1 | 1 . . . Destroy 1 | . . 1 . Blast 1 | . . 1 . Melee Attacks 1 | . 1 . . Impact . | . . . . Slashing 1 | . 1 . . Piercing . | . . . . Sneak Attacks . | . . . . Combat Hostiles . | . . . . Follow-up Attacks . | . . . . Damage Inflicted 1846 | 136 760 821 129 Guns 1407 | 136 415 727 129 Cannons 439 | . 345 94 . Explosions . | . . . . Melee . | . . . . Ramming . | . . . . Kinetic 1281 | 59 383 743 96 Thermal 565 | 77 377 78 33 Explosive . | . . . . Electromagnetic . | . . . . Impact . | . . . . Slashing . | . . . . Piercing . | . . . . Highest Corruption . | . . . . Average Corruption . | . . . . Corruption Purged . | . . . . Corruption Blocked . | . . . . Overload Shots . | . . . . Overflow Damage 6 | . 6 . . Projectiles 6 | . 6 . . Explosions . | . . . . Melee . | . . . . Knockbacks 5 | . 2 3 . Impact . | . . . . Kinetic 4 | . 2 2 . Secondary 1 | . . 1 . Self-Inflicted Damage . | . . . . Shots . | . . . . Rammed . | . . . . Targets Rammed . | . . . . Kicked . | . . . . Crushed . | . . . . Highest Temperature 234 | 150 234 . 54 Average Temperature 69 | 75 72 . 18 Received Heat Transfer 99 | . 57 42 . Siege Activations . | . . . . Martial Activations . | . . . . Shielding Activations . | . . . . Robots Disrupted . | . . . . Combat Hostiles . | . . . . Robots Corrupted . | . . . . Combat Hostiles . | . . . . Parts Fried . | . . . . Impact Corruptions . | . . . . Robots Melted . | . . . . Combat Hostiles . | . . . . Parts Melted . | . . . . Heat Transferred 1331 | 296 885 105 45 Parts Sabotaged . | . . . . Parts Stolen . | . . . . Parts Stripped . | . . . . Power Chain Reactions . | . . . . Alert | -11 -10 -10 -9 ------- Run | Yrd Mat Sub Rec Maximum Alert Level . | . . . . Low Security (%) 100 | 100 100 . 100 Level 1 . | . . . . Level 2 . | . . . . Level 3 . | . . . . Level 4 . | . . . . Level 5 . | . . . . High Security . | . . . . Max Security . | . . . . Peak Influence 108 | 5 108 . 67 Initial 67 | . . . 67 Average 34 | . 36 . 37 Influence Increases 860 | 10 431 250 169 Destroy 0b10 Robot/C 440 | . 240 180 20 Destroy 0b10 Robot/NC 40 | 10 25 . 5 Destroy Leader 68 | . 58 10 . Successful Hack 49 | . 25 . 24 Select Force Hacks 120 | . . . 120 Disable Machine 45 | . 45 . . Destroy Structure 8 | . 8 . . Lose Combat Pursuer 90 | . 30 60 . Influence Decreases 804 | 10 351 190 253 Entered New Map 112 | . . 39 73 Time Decay 651 | 10 351 130 160 Lost Part 41 | . . 21 20 Squads Dispatched 2 | . 2 . . Investigation 1 | . 1 . . Extermination . | . . . . Reinforcement 1 | . 1 . . Assault . | . . . . Garrison . | . . . . Intercept . | . . . . Searches Triggered . | . . . . Construction Impeded . | . . . . Haulers Reinforced . | . . . . Active Scanning Responses . | . . . . Cargo Convoy Interrupts . | . . . . Stealth | -11 -10 -10 -9 --------- Run | Yrd Mat Sub Rec Distress Signals 3 | . 3 . . Communications Jammed . | . . . . Distress Signals . | . . . . Times Spotted 37 | . 22 13 2 Peak Tracking Total 6 | . 3 6 2 Tactical Retreats 5 | . 2 3 . Traps | -11 -10 -10 -9 ------- Run | Yrd Mat Sub Rec Traps Triggered 1 | . 1 . . Indirectly . | . . . . Trap Hack Attempts . | . . . . Triggered . | . . . . Disarmed . | . . . . Reprogrammed . | . . . . Reused . | . . . . Traps Extracted . | . . . . Installed . | . . . . Triggered . | . . . . Machines | -11 -10 -10 -9 ---------- Run | Yrd Mat Sub Rec Machines Disabled 6 | . 4 2 . Max in Single Turn 1 | . 1 1 . Machines Repaired . | . . . . Machines Dismantled . | . . . . Machines Sabotaged . | . . . . Overloaded Fab Kills . | . . . . Hacking | -11 -10 -10 -9 --------- Run | Yrd Mat Sub Rec Machines Accessed 17 | . 8 . 9 Terminals 12 | . 7 . 5 Fabricators . | . . . . Repair Stations 1 | . 1 . . Recycling Units 4 | . . . 4 Scanalyzers . | . . . . Garrison Access . | . . . . Total Hacks 49 | . 28 . 21 Successful 27 | . 12 . 15 Failed 22 | . 16 . 6 Catastrophic 2 | . 1 . 1 Database Lockouts . | . . . . Manual 42 | . 26 . 16 Terminals 40 | . 27 . 13 Fabricators . | . . . . Repair Stations 1 | . 1 . . Recycling Units 8 | . . . 8 Scanalyzers . | . . . . Garrison Access . | . . . . Terminal Hacks 4 | . 4 . . Part Schematic 1 | . 1 . . Robot Analysis 2 | . 2 . . Terminal Index 1 | . 1 . . Fabricator Hacks . | . . . . Repair Station Hacks . | . . . . Recycling Unit Hacks 4 | . . . 4 Retrieve Components 4 | . . . 4 Scanalyzer . | . . . . Garrison Access Hacks . | . . . . Unauthorized Hacks 19 | . 8 . 11 Terminals 15 | . 8 . 7 Botnet 5 | . 2 . 3 Operators 1 | . 1 . . Skim 9 | . 5 . 4 Fabricators . | . . . . Repair Stations . | . . . . Recycling Units 4 | . . . 4 Tunnel 4 | . . . 4 Scanalyzers . | . . . . Garrison Access . | . . . . Data Cores Recovered . | . . . . Used . | . . . . Hacking Detections 14 | . 8 . 6 Full Trace Events 1 | . . . 1 Feedback Events . | . . . . Feedback Blocked . | . . . . Robot Schematics Acquired . | . . . . Robots Built . | . . . . Authchips . | . . . . Time . | . . . . Total Robot Build Rating . | . . . . Part Schematics Acquired 1 | . 1 . . Parts Built . | . . . . Authchips . | . . . . Time . | . . . . Total Part Build Rating . | . . . . Part Studies Acquired . | . . . . Parts Repaired . | . . . . Time . | . . . . Parts Recycled . | . . . . Recycled Matter . | . . . . Retrieved Matter . | . . . . Retrieved Components 5 | . . . 5 Parts Scanalyzed . | . . . . Part Schematics Acquired . | . . . . Parts Damaged . | . . . . Bothacking | -11 -10 -10 -9 ------------ Run | Yrd Mat Sub Rec Used RIF Installer . | . . . . Robots Hacked . | . . . . Non-combat . | . . . . Combat . | . . . . Robot Hacks Applied . | . . . . Relay Couplers Released . | . . . . Fabnet Peak Effective % . | . . . . Robots Rewired . | . . . . Allies Hacked . | . . . . Hacks Repelled . | . . . . Allies | -11 -10 -10 -9 -------- Run | Yrd Mat Sub Rec Total Allies . | . . . . Largest Group . | . . . . Highest-Rated Group . | . . . . Highest-Rated Ally . | . . . . Total Orders . | . . . . Ally Attacks . | . . . . Total Damage . | . . . . Kills . | . . . . Allies Corrupted . | . . . . Allies Melted . | . . . . Intel | -11 -10 -10 -9 ------- Run | Yrd Mat Sub Rec Active Infowar (turns) 1092 | 18 907 167 . Sensors 168 | . 1 167 . Seismic 924 | 18 906 . . Robot Analysis Total 2 | . 2 . . Derelict Logs Recovered . | . . . . Drone Launches . | . . . . Drone Recoveries . | . . . . Exploration | -11 -10 -10 -9 ------------- Run | Yrd Mat Sub Rec Turns Passed 2453 | 115 1608 399 331 Spaces Moved 1430 | 54 959 191 226 Core 1 | 1 . . . Treads . | . . . . Legs . | . . . . Wheels 1429 | 53 959 191 226 Hover . | . . . . Flight . | . . . . Fastest Speed 50 | 50 90 135 135 Average Speed 123 | 90 117 144 135 Slowest Speed 215 | 100 215 215 135 Overloaded Moves . | . . . . Propulsion Burnouts . | . . . . Robots Hopped . | . . . . Potential Cave-ins . | . . . . Cave-ins Triggered . | . . . . Exploration Rate (%) 44 | 4 97 8 67 Regions Visited 3 Branch Regions 2 Pre-discovered Areas 5 | . 1 . 4 Known Exits Taken . | . . . . Unknown Exits Taken 3 | 1 1 1 . Scrap Searched . | . . . . Spaces Dug 4 | . 4 . . Terrain Destroyed 4 | . 4 . . Melee . | . . . . Projectile 4 | . 4 . . AOE . | . . . . Terrain Rammed . | . . . . Walls Destroyed . | . . . . Machines Disabled . | . . . . Actions | -11 -10 -10 -9 --------- Run | Yrd Mat Sub Rec Total 1922 | 98 1329 252 243 Wait 320 | 24 278 10 8 Move 1427 | 53 958 190 226 Hop . | . . . . Pick Up 21 | 3 14 2 2 Fast Attach 13 | 6 3 4 . Attach 8 | 1 2 4 1 Detach 1 | . 1 . . Swap 18 | 1 11 6 . Drop 12 | . 5 6 1 Fire 101 | 10 56 30 5 Melee 1 | . 1 . . Ram . | . . . . Kick . | . . . . Crush . | . . . . Escape Stasis . | . . . . Rewire . | . . . . Trap . | . . . . Miscellaneous . | . . . . Route ------- -11/Scrapyard -10/Materials (discovered 5 exits: *Mat x3 / [*Min] / [*Sub]) -10/Subcaves -9/Recycling History --------- Turn | Location | Event 28 | -11/Scrapyard | Discovered new exit (range 14) 116 | -11/Scrapyard | Entered Materials 164 | -10/Materials | Discovered new exit (range 10) 309 | -10/Materials | Build established: Mutant 438 | -10/Materials | Discovered new exit (range 8) 488 | -10/Materials | Discovered new exit (range 10) 650 | -10/Materials | Discovered new exit (range 10) 651 | -10/Materials | Learned 2 Materials zone layouts 675 | -10/Materials | Identified exit to Materials 675 | -10/Materials | Learned location of 1 exit from Materials 708 | -10/Materials | Learned location of Recycling (-9) 1724 | -10/Materials | Entered Subcaves 1725 | -10/Subcaves | Approached by a straggling Scientist 1739 | -10/Subcaves | A Subdweller sparked back to life 1760 | -10/Subcaves | Core integrity fell below 50% 1892 | -10/Subcaves | Shifting Twisted Machinery released Barrage Gun 1961 | -10/Subcaves | Discovered new exit (range 10) 1994 | -10/Subcaves | Found Prototype Power Core 2067 | -10/Subcaves | Core integrity fell below 20% 2123 | -10/Subcaves | Entered Recycling 2454 | -9/Recycling | Destroyed by H-55 Commando with Assault Rifle Last Messages --------------- Imp. Hover Unit >>Force(Tunnel) DISCOVERED[-4/Hub_04(d)] 02431_ Connecting with Recycling Unit... >>Retrieve(Components) Retrieving 1 components... Salvage Targeting Computer >>Force(Tunnel) DISCOVERED[-7/Factory] 02435_ A-02 Transporter destroyed. 02435_ H-55 Commando springs to life. 02435_ L-31 Rogue springs to life. 02444_ Slug penetrates Wall. 02444_ Sub. Machine Gun destroyed. 02447_ Slug penetrates Wall. 02447_ Lgt. Ion Engine destroyed. 02450_ Slug penetrates Wall. 02451_ L-31 Rogue destroyed. 02454_ Acquired 34 matter. 02454_ Slug penetrates Wall. Map ----- +----------------------------------------------------+ | ??????# ####### #######+#####????????????????????? | | #######/####### # [#???????????????????? | | ## # | #???????????????????? | | ! + # ! #???????????????????? | | ! ! !# # [ #???????????????????? | | ! ! # # = [ +???????????????????? | | ! !+ # [ #???????????????????? | | !! !! # # = #???????????????????? | | ####+######### # % #???????????????????? | | # #???????????????????? | | + #???????????????????? | | # % #???????????????????? | | ### ####### # %! #???????????????????? | | #? #?????# ##############???????????????????? | | ### !!????# #????????????????????????????????? | | ""# !!#???# #?###########????????????????????? | | T"# !!#???# #?#% ! #????????????????????? | | ""# ###???# #?# #????????????????????? | | ### #?????# #?#r| #????????????????????? | | ""# #?????# #?# %= #????????????????????? | | ""# #?????# #?# Y !%= #????????????????????? | | T"# #???### #?# % !#????#???????????????? | | ""# #???#"" #???/ a #??? #???????????????? | | ""# ???#"Y[ #????? h ???? #???????????????? | | ### ????#""! #??#r###;##### #???????????????? | | #?????????### #??# @ #???????????????? | | #???????????# #### + * #?????????? | | ????????????# rr ! # [ #?????????? | | ????????????# ##########"Y"# #?????#?????????? | | ????????????# #????????#"""#? + ??????????????? | | ????????????# #????????#####?? # ] ????????????? | | ????????????# #????????????????#? ??????????? | | ????????????# #????????????????????% #?????????? | | ????????????# #????????????????????? ??????????? | | ????????????# #????????????????????????????????? | | ????????????# #?###########????????????????????? | | ??????????### ## #????????????????????? | | ??????????#"" ## #?????????????????????? | | ??????????#"Y/ ## #?????????????????????? | | ??????????#""= ## #?????????????????????? | | ??????????### ## #?????????????????????? | | ???????????## ## #?????????????????????? | | ???????????# # #?????????????????????? | | ???????????# # #?????????????????????? | | ???????????# + #?????????????????????? | | ???????????# # #?????????????????????? | | ???????????# # #?????????????????????? | | ???????????####### #?????????????????????? | | ?????????????????# #?????????????????????? | | ?????????????????# #?????????????????????? | +----------------------------------------------------+ Best States ------------- Heat Dissipation 25 Energy Generation 15 Energy Capacity 250 Matter Stores 300 Matter Capacity 300 Sight Range 16 Robot Scan Range 14 Terrain Scan Density 10 Armor Coverage 150 Evasion (%) 42 Authchip Count 1 Item Schematics ----------------- Hcp. Storage Unit | -10/Materials | Hacked Robot Schematics ------------------ None Fabricated ------------ Nothing Repaired ---------- Nothing Studied --------- None Alien Tech Used ----------------- None Achievements -------------- None Challenges ------------ None Game ------ Seed HybridFluxBlade Manual? 0 Play Time 00:21:49 Cumulative 467.9 hours Start 2026.01.22 @ 15:26:05 End 2026.01.22 @ 15:45:55 Sessions 1 Manual Loads 0 Difficulty Rogue Special Mode None Game No. 161 Rogue 161 Adventurer 0 Explorer 0 Win Type - Total 13 Types 6/0/3/1/0/0/0/1/0/2 Lore% 89 Gallery% 84 Achievement% 72 Wizard Run 0 Options --------- Layout 1 ASCII 0 Keyboard 0 Movement Mouse Keybinds 0 Fullscreen 2 Font 32/SmallcapsGlow Map View 50x35 Zoom Use 0% Tactical HUD 1 Map Filters NONE Filters NONE Steam 1 RUN: f0d8e1ca-7089-4bc8-b347-2f78a7a703f9